Cogmind - Beta 11 X8 @@@ ROGUE MODE // 2021.11.14 @ 19:30:20 Player: thomas Result: Self-destructed Performance ------------- Evolutions (1) 500 Regions Visited (3) 600 Robots Destroyed (38) 190 Value Destroyed (938) 938 Prototype IDs (3) 60 Alien Tech Used (0) 0 Bonus (0) 0 TOTAL SCORE: 2288 Bonus ------- None Cogmind --------- Core Integrity 368/400 Matter 240/300 Energy 100/100 System Corruption 0% Temperature Cool (20) Movement Rolling (86) Location -9/Materials Parts ------- > --- POWER (1) -------- (None) > --- PROPULSION (3) --- Wheel Wheel Compact Wheel > --- UTILITY (3) ------ Medium Storage Unit > --- WEAPON (2) ------- Improved Medium Laser > --- INVENTORY (10) --- Aluminum Leg Wheel Wheel Huge Storage Unit High-capacity Matter Pod (200) Targeting Computer EM Pulse Gun Small Laser Particle Gun Peak State ------------ > --- POWER ------------ Light Ion Engine > --- PROPULSION ------- Wheel Wheel Compact Wheel > --- UTILITY ---------- Medium Storage Unit > --- WEAPON ----------- Improved Medium Laser Grenade Launcher > --- INVENTORY -------- Aluminum Leg Wheel Wheel Huge Storage Unit High-capacity Matter Pod Targeting Computer EM Pulse Gun Small Laser Particle Gun [Rating: 10] Favorites ----------- Power Ion Engine Engine Ion Engine Propulsion Light Treads Treads Light Treads Leg Aluminum Leg Wheel Wheel Utility Medium Storage Unit Device Heat Sink Storage Medium Storage Unit Processor Signal Interpreter Protection Light Armor Plating Weapon Medium Laser Energy Gun Medium Laser Ballistic Cannon Light Cannon Launcher Grenade Launcher Build | -11 -10 -10 -9 ------- Run | Scr Mat Min Mat Slots Evolved 2 | . . . 2 Power . | . . . . Propulsion 1 | . . . 1 Utility 1 | . . . 1 Weapon . | . . . . Parts Attached 33 | . 14 17 2 Power 4 | . 2 2 . Engine 4 | . 2 2 . Core . | . . . . Reactor . | . . . . Propulsion 11 | . 4 6 1 Treads 3 | . 3 . . Leg 1 | . . 1 . Wheel 7 | . 1 5 1 Hover . | . . . . Flight . | . . . . Utility 9 | . 6 3 . Device 1 | . 1 . . Storage 3 | . 3 . . Processor 1 | . . 1 . Hackware . | . . . . Protection 4 | . 2 2 . Artifact . | . . . . Weapon 9 | . 2 6 1 Energy Gun 6 | . 2 3 1 Energy Cannon . | . . . . Ballistic Gun . | . . . . Ballistic Cannon 1 | . . 1 . Launcher 2 | . . 2 . Special Weapon . | . . . . Impact Weapon . | . . . . Slashing Weapon . | . . . . Piercing Weapon . | . . . . Special Melee Weapon . | . . . . Unidentified Prototypes 1 | . . . 1 Parts Lost 9 | . . 7 2 Power 3 | . . 2 1 Propulsion 1 | . . 1 . Utility 3 | . . 3 . Weapon 2 | . . 1 1 Highest Loss Streak 2 | . . 2 2 Average Slot Usage (%) 94 | . 99 89 68 Engine 13 | . 14 12 11 Treads 13 | . 20 4 . Leg 2 | . 3 1 . Wheel 10 | . 4 19 24 Device 2 | . 4 . . Storage 13 | . 14 14 11 Protection 8 | . 8 8 . Energy Gun 23 | . 28 18 8 Ballistic Cannon 2 | . . 6 2 Launcher 1 | . . 2 11 Naked Turns . | . . . . Heaviest Build 92 | 14 92 22 19 Greatest Support 40 | 20 40 20 20 Greatest Overweight (x) 6 | . 2 6 . Average Overweight (x) . | . . . . Largest Inventory Capacity 25 | 8 25 10 10 Average Capacity 9 | 8 9 10 10 Most Carried 10 | 6 10 10 10 Average Carried 9 | 6 9 9 9 Final Capacity 10 | 8 10 10 10 Final Carried 10 | 6 10 10 9 Class Distribution -------------------- 100% | Mutant Dominant Class ---------------- Mutant | -10/Materials Mutant | -10/Mines Mutant | -9/Materials Resources | -11 -10 -10 -9 ----------- Run | Scr Mat Min Mat Matter Collected 843 | 200 389 254 . Remotely . | . . . . Salvage Created 1045 | . 407 602 36 Parts 55 | . 20 26 9 Haulers Intercepted . | . . . . Recyclers Shooed . | . . . . Parts Field Recycled . | . . . . Retrieved Matter . | . . . . Parts Self-Destructed . | . . . . Prevented . | . . . . Kills | -11 -10 -10 -9 ------- Run | Scr Mat Min Mat Combat Hostiles Destroyed 31 | . 12 16 3 Guns 22 | . 12 9 1 Cannons 1 | . . 1 . AOE 7 | . . 5 2 Classes Destroyed 6 | . 2 4 . Worker 2 | . . 2 . Builder 2 | . . 1 1 Tunneler 1 | . . 1 . Recycler 2 | . . 2 . Swarmer 12 | . 3 6 3 Grunt 19 | . 9 10 . Best Kill Streak 7 | . 3 7 4 Combat Bots Only 3 | . 3 3 3 Max Kills in Single Turn 3 | . 1 2 3 Gunslinging . | . . . . Exploded 2 | . . 1 2 Melee . | . . . . Uniques/NPCs Destroyed . | . . . . Combat | -11 -10 -10 -9 -------- Run | Scr Mat Min Mat Damage Taken 1624 | . 671 726 227 Core 254 | . 111 111 32 Absorbed by Shields . | . . . . Core Remaining (%) 55 | 100 . 11 . Volleys Fired 103 | . 45 55 3 Largest 2 | . 2 2 2 Hottest 115 | . 90 115 86 Shots Fired 191 | . 85 101 5 Gun 170 | . 85 82 3 Cannon 11 | . . 11 . Launcher 10 | . . 8 2 Special . | . . . . Kinetic 11 | . . 11 . Thermal 165 | . 80 82 3 Explosive 10 | . . 8 2 Electromagnetic 5 | . 5 . . Robot Hit Streak 15 | . 15 13 3 Robot Miss Streak 3 | . 2 3 1 Penetration Max . | . . . . Secondary Targets 1 | . 1 . . Max Gunslinging Chain 1 | . 1 . . Shots Hit Robots 139 | . 66 70 3 Core Hits 69 | . 25 38 6 Critical Kills . | . . . . Critical Parts Destroyed . | . . . . Critical Strikes 11 | . 4 7 . Burn 10 | . 4 6 . Blast 1 | . . 1 . Melee Attacks . | . . . . Impact . | . . . . Slashing . | . . . . Piercing . | . . . . Sneak Attacks . | . . . . Combat Hostiles . | . . . . Follow-up Attacks . | . . . . Damage Inflicted 2443 | . 866 1372 205 Guns 1733 | . 866 814 53 Cannons 123 | . . 123 . Explosions 587 | . . 435 152 Melee . | . . . . Ramming . | . . . . Kinetic 123 | . . 123 . Thermal 1710 | . 843 814 53 Explosive 587 | . . 435 152 Electromagnetic 23 | . 23 . . Impact . | . . . . Slashing . | . . . . Piercing . | . . . . Highest Corruption . | . . . . Average Corruption . | . . . . Corruption Purged . | . . . . Overload Shots . | . . . . Overflow Damage . | . . . . Projectiles . | . . . . Explosions . | . . . . Melee . | . . . . Knockbacks 3 | . . 3 . Impact . | . . . . Kinetic 3 | . . 3 . Secondary . | . . . . Self-Inflicted Damage 48 | . . 12 36 Shots 2 | . . 1 1 Rammed . | . . . . Targets Rammed . | . . . . Kicked . | . . . . Crushed . | . . . . Highest Temperature 552 | . 459 552 20 Average Temperature 174 | . 173 180 16 Received Heat Transfer 714 | . 345 369 . Effects 22 | . 10 12 . Shutdowns 3 | . 2 1 . Energy Bleed 4 | . 2 2 . Interference 7 | . 4 3 . Matter Decay 1 | . 1 . . Short Circuit 3 | . 1 2 . Damage (minor) 2 | . . 2 . Damage (major) 2 | . . 2 . Siege Activations . | . . . . Robots Corrupted . | . . . . Combat Hostiles . | . . . . Parts Fried . | . . . . Impact Corruptions . | . . . . Robots Melted 1 | . . 1 . Combat Hostiles 1 | . . 1 . Parts Melted 15 | . 6 9 . Heat Transferred 5119 | . 2379 2629 111 Parts Sabotaged . | . . . . Parts Stolen . | . . . . Parts Stripped . | . . . . Power Chain Reactions . | . . . . Missiles Intercepted . | . . . . Alert | -11 -10 -10 -9 ------- Run | Scr Mat Min Mat Peak Influence 195 | . 189 195 155 Initial 40 | . . 6 40 Average 87 | . 83 95 58 Maximum Alert Level . | . . . . Low Security (%) 100 | 100 100 100 100 Level 1 . | . . . . Level 2 . | . . . . Level 3 . | . . . . Level 4 . | . . . . Level 5 . | . . . . High Security . | . . . . Max Security . | . . . . Squads Dispatched 3 | . 3 . . Investigation 2 | . 2 . . Extermination . | . . . . Reinforcement 1 | . 1 . . Assault . | . . . . Garrison . | . . . . Intercept . | . . . . Construction Impeded . | . . . . Haulers Reinforced . | . . . . Active Scanning Responses . | . . . . Cargo Convoy Interrupts . | . . . . Stealth | -11 -10 -10 -9 --------- Run | Scr Mat Min Mat Distress Signals 3 | . 3 . . Communications Jammed . | . . . . Distress Signals . | . . . . Times Spotted 47 | . 23 17 7 Peak Tracking Total 7 | . 5 3 7 Tactical Retreats 2 | . 1 1 . Traps | -11 -10 -10 -9 ------- Run | Scr Mat Min Mat Traps Triggered 1 | . 1 . . Indirectly . | . . . . Trap Hack Attempts . | . . . . Triggered . | . . . . Disarmed . | . . . . Reprogrammed . | . . . . Reused . | . . . . Traps Extracted . | . . . . Installed . | . . . . Triggered . | . . . . Machines | -11 -10 -10 -9 ---------- Run | Scr Mat Min Mat Machines Disabled 5 | . . 3 2 Max in Single Turn 2 | . . 2 1 Machines Sabotaged . | . . . . Garrisons Compromised . | . . . . Overloaded Fab Kills . | . . . . Hacking | -11 -10 -10 -9 --------- Run | Scr Mat Min Mat Machines Accessed 8 | . 8 . . Terminals 7 | . 7 . . Fabricators . | . . . . Repair Stations . | . . . . Recycling Units 1 | . 1 . . Scanalyzers . | . . . . Garrison Access . | . . . . Total Hacks 24 | . 24 . . Successful 16 | . 16 . . Failed 8 | . 8 . . Catastrophic 1 | . 1 . . Database Lockouts . | . . . . Manual 21 | . 21 . . Terminals 23 | . 23 . . Fabricators . | . . . . Repair Stations . | . . . . Recycling Units 1 | . 1 . . Scanalyzers . | . . . . Garrison Access . | . . . . Terminal Hacks 9 | . 9 . . Part Schematic 1 | . 1 . . Robot Analysis 4 | . 4 . . Prototype ID Bank 1 | . 1 . . Unreport Threat 1 | . 1 . . Locate Traps 1 | . 1 . . Hauler Manifests 1 | . 1 . . Fabricator Hacks . | . . . . Repair Station Hacks . | . . . . Recycling Unit Hacks . | . . . . Scanalyzer . | . . . . Garrison Access Hacks . | . . . . Unauthorized Hacks 7 | . 7 . . Terminals 6 | . 6 . . Track 1 | . 1 . . Botnet 4 | . 4 . . Operators 1 | . 1 . . Fabricators . | . . . . Repair Stations . | . . . . Recycling Units 1 | . 1 . . Tunnel 1 | . 1 . . Scanalyzers . | . . . . Garrison Access . | . . . . Data Cores Recovered . | . . . . Used . | . . . . Hacking Detections 7 | . 7 . . Full Trace Events . | . . . . Feedback Events . | . . . . Feedback Blocked . | . . . . Robot Schematics Acquired . | . . . . Robots Built . | . . . . Authchips . | . . . . Time . | . . . . Total Robot Build Rating . | . . . . Part Schematics Acquired 1 | . 1 . . Parts Built . | . . . . Authchips . | . . . . Time . | . . . . Total Part Build Rating . | . . . . Parts Repaired . | . . . . Time . | . . . . Parts Recycled . | . . . . Recycled Matter . | . . . . Retrieved Matter . | . . . . Retrieved Components . | . . . . Parts Scanalyzed . | . . . . Part Schematics Acquired . | . . . . Parts Damaged . | . . . . Bothacking | -11 -10 -10 -9 ------------ Run | Scr Mat Min Mat Used RIF Installer . | . . . . Robots Hacked . | . . . . Non-combat . | . . . . Combat . | . . . . Robot Hacks Applied . | . . . . Relay Couplers Released . | . . . . Fabnet Peak Effective % . | . . . . Robots Rewired . | . . . . Allies Hacked . | . . . . Hacks Repelled . | . . . . Allies | -11 -10 -10 -9 -------- Run | Scr Mat Min Mat Total Allies . | . . . . Largest Group . | . . . . Highest-Rated Group . | . . . . Highest-Rated Ally . | . . . . Total Orders . | . . . . Ally Attacks . | . . . . Total Damage . | . . . . Kills . | . . . . Allies Corrupted . | . . . . Allies Melted . | . . . . Intel | -11 -10 -10 -9 ------- Run | Scr Mat Min Mat Robot Analysis Total 4 | . 4 . . Derelict Logs Recovered 2 | . . 2 . Drone Launches . | . . . . Drone Recoveries . | . . . . Exploration | -11 -10 -10 -9 ------------- Run | Scr Mat Min Mat Turns Passed 2085 | 3 1169 874 39 Spaces Moved 1443 | 3 728 680 32 Core 18 | . . 18 . Treads 324 | . 324 . . Legs 95 | 3 92 . . Wheels 1006 | . 312 662 32 Hover . | . . . . Flight . | . . . . Fastest Speed 80 | 120 95 80 80 Average Speed 114 | 120 131 97 80 Slowest Speed 350 | 120 320 350 80 Overloaded Moves . | . . . . Propulsion Burnouts . | . . . . Robots Hopped . | . . . . Cave-ins Triggered . | . . . . Exploration Rate (%) 51 | 2 98 97 9 Regions Visited 3 Branch Regions 1 Pre-discovered Areas 1 | . 1 . . Known Exits Taken . | . . . . Unknown Exits Taken 3 | 1 1 1 . Scrap Searched 2 | . . 2 . Spaces Dug . | . . . . Terrain Destroyed 25 | . . 13 12 Melee . | . . . . Projectile . | . . . . AOE 25 | . . 13 12 Terrain Rammed . | . . . . Walls Destroyed . | . . . . Machines Disabled . | . . . . Actions | -11 -10 -10 -9 --------- Run | Scr Mat Min Mat Total 1689 | 2 858 789 40 Wait 79 | . 55 22 2 Move 1440 | 2 727 679 32 Hop . | . . . . Pick Up 12 | . 6 6 . Fast Attach 8 | . 2 5 1 Attach 7 | . 1 5 1 Detach 3 | . 1 2 . Swap 18 | . 11 7 . Drop 19 | . 10 8 1 Fire 103 | . 45 55 3 Melee . | . . . . Ram . | . . . . Kick . | . . . . Crush . | . . . . Escape Stasis . | . . . . Rewire . | . . . . Trap . | . . . . Miscellaneous . | . . . . Route ------- -11/Scrapyard -10/Materials (discovered 4 exits: [*Mat x3] / [*Min]) -10/Mines (discovered 2 exits: [*Mat x2]) -9/Materials History --------- Turn | Location | Event 1 | -11/Scrapyard | Discovered new exit (range 1) 4 | -11/Scrapyard | Entered Materials 316 | -10/Materials | Build established: Mutant 343 | -10/Materials | Discovered new exit (range 16) 545 | -10/Materials | Discovered new exit (range 11) 854 | -10/Materials | Discovered new exit (range 3) 1150 | -10/Materials | Discovered new exit (range 12) 1173 | -10/Materials | Entered Mines 1184 | -10/Mines | Core integrity fell below 50% 1344 | -10/Mines | Discovered new exit (range 5) 1495 | -10/Mines | Learned Materials stockpile data 1506 | -10/Mines | Learned Materials security intel 1736 | -10/Mines | Core integrity fell below 20% 2029 | -10/Mines | Discovered new exit (range 12) 2047 | -10/Mines | Entered Materials 2047 | -9/Materials | Evolved 2 slots: Propulsion x1, Utility x1 2086 | -9/Materials | Self-destructed Last Messages --------------- 02040_ Acquired Grenade Launcher. 02043_ Acquired 40 matter. 02046_ Acquired 22 matter. PARAMETERS=PROPULSION+1,UTILITY+1 LOCATION=UNKNOWN GOAL=ESCAPE Loading Materials stockpile data (x1)... Loading Materials security intel (x10)... 02051_ T-07 Excavator is excavating. 02055_ Dropped Lgt. Cannon. 02055_ Acquired Prototype Energy Gun. 02055_ Identified Imp. Medium Laser. 02078_ S-10 Pest destroyed. 02078_ Electrolysis Chamber disabled. 02078_ S-10 Pest destroyed. 02078_ U-05 Engineer destroyed. 02081_ S-10 Pest destroyed. 02081_ Terminal disabled. 02082_ Lgt. Ion Engine destroyed. 02084_ Grenade Launcher destroyed. Map ----- +----------------------------------------------------+ | ?????????????????????????????????????????????????? | | ?????????????????????????????????????????????????? | | ?????????????????????????????????????????????????? | | ?????????????????????????????????????????????????? | | ?????????????????????????????????????????????????? | | ?????????????????????????????????????????????????? | | ?????????????????????????????????????????????????? | | ?????????????????????????????????????????????????? | | ?????????????????????????????????????????????????? | | ?????? ??????????????????????????????????????????? | | ???""" ??????????????????????????????????????????? | | ???? ??????????????????????????????????????????? | | ???? ?????????????????????????????????????????? | | ???"" ?????????????????????????????????????????? | | """ ?????????????????????????####????????????? | | ? """ #########??????????????? ????????????? | | +?????????????? ???????????? | | #?????????????? ???????????? | | """ ###?????????+? % ????????????? | | """ ????????? # ?????????????? | | """ ########### # ???????????????? | | # *%=+ ????????????????? | | + """ " !!# ???????##?????????? | | ##### ###### """ "" #### #?????????? | | #####+###### """ "" s #?????????? | | # ] ## @*=%* #?????????? | | # """ ## #% s! #?????????? | | # """"" ## #??!ss " #?????????? | | # """"" ## #???? ??????????? | | ?# + """"" ############?????? k #?????????? | | ?# # """ #?????????????????? t #?????????? | | ?# # #???????????????????## k+?????????? | | ?# # #?????????????????????? ??????????? | | ?# ###########?????????????????????????????????? | | ?# #???????????????????????????????????????????? | | ?#####???????????????????????????????????????????? | | ?????????????????????????????????????????????????? | | ?????????????????????????????????????????????????? | | ?????????????????????????????????????????????????? | | ?????????????????????????????????????????????????? | | ?????????????????????????????????????????????????? | | | | | | | | | | | | | | | | | | | +----------------------------------------------------+ Best States ------------- Heat Dissipation 35 Energy Generation 10 Energy Capacity 250 Matter Stores 300 Matter Capacity 300 Sight Range 16 Terrain Scan Density 10 Armor Coverage 150 Evasion (%) 55 Recoil Reduction 2 Item Schematics ----------------- Sml. Storage Unit | -10/Materials | Hacked Robot Schematics ------------------ None Fabricated ------------ Nothing Alien Tech Used ----------------- None Achievements -------------- None Challenges ------------ None Game ------ Seed PlasmaSchematicMicrothruster Manual? 0 Play Time 00:14:06 Cumulative 47.3 hours Start 2021.11.14 @ 19:16:38 End 2021.11.14 @ 19:30:20 Sessions 1 Manual Loads 0 Difficulty Rogue Special Mode None Game No. 60 Rogue 40 Adventurer 17 Explorer 3 Win Type - Total 1 Types 0/0/1/0/0/0/0/0/0 Lore% 29 Gallery% 38 Achievement% 41 Wizard Run 0 Options --------- ASCII 1 Keyboard 1 Movement Vi Keybinds 0 Fullscreen 2 Font 24/Terminus Map View 76x50 Tactical HUD 1 Map Filters SATURATION(65) Filters SATURATION(65) Steam 1 RUN: 7d68c5d3-c136-487e-8568-207e5f253cd9